[Event "*** Titled Tuesday Blitz"]
[Site "Chess.com"]
[Date "2020.05.19"]
[Round "10"]
[White "Nellichka"]
[Black "Mbneu"]
[Result "0-1"]
[WhiteElo "2001"]
[BlackElo "2215"]
[TimeControl "180+1"]
[EndTime "13:57:24 PDT"]
[Termination "Mbneu won on time"]

1. d4 {[%clk 0:02:58.2]} 1... Nf6 {[%clk 0:02:31.2]} 2. c4 {[%clk 0:02:55.2]}
2... c5 {[%clk 0:02:29.8]} 3. d5 {[%clk 0:02:54.2]} 3... e6 {[%clk 0:02:30.1]}
4. Nc3 {[%clk 0:02:52.7]} 4... exd5 {[%clk 0:02:30.2]} 5. cxd5 {[%clk
0:02:51.8]} 5... d6 {[%clk 0:02:30.8]} 6. e4 {[%clk 0:02:50.2]} 6... g6 {[%clk
0:02:30.5]} 7. Nf3 {[%clk 0:02:48.6]} 7... Bg7 {[%clk 0:02:30.4]} 8. Bg5 {[%clk
0:02:48.2]} 8... h6 {[%clk 0:02:28.1]} 9. Bh4 {[%clk 0:02:47]} 9... O-O {[%clk
0:02:24.3]} 10. Be2 {[%clk 0:02:43.1]} 10... a6 {[%clk 0:02:19.2]} 11. a4 {[%clk
0:02:41.1]} 11... Nbd7 {[%clk 0:02:06]} 12. Nd2 {[%clk 0:02:38.2]} 12... Qc7
{[%clk 0:02:02]} 13. O-O {[%clk 0:02:34.4]} 13... Re8 {[%clk 0:01:52.6]} 14. f4
{[%clk 0:02:32.9]} 14... c4 {[%clk 0:01:46.9]} 15. Bxc4 {[%clk 0:02:24.1]} 15...
Qb6+ {[%clk 0:01:35.9]} 16. Bf2 {[%clk 0:01:40.1]} 16... Qxb2 {[%clk 0:01:31]}
17. Bd4 {[%clk 0:01:39.2]} 17... Ng4 {[%clk 0:01:08.3]} 18. Nf3 {[%clk
0:01:22.1]} 18... Bxd4+ {[%clk 0:00:58.6]} 19. Qxd4 {[%clk 0:01:20.5]} 19... Qb6
{[%clk 0:00:58.7]} 20. Rab1 {[%clk 0:01:09.9]} 20... Qxd4+ {[%clk 0:00:57.3]}
21. Nxd4 {[%clk 0:01:08.6]} 21... Ne3 {[%clk 0:00:56.5]} 22. Bd3 {[%clk
0:01:07.5]} 22... Nc5 {[%clk 0:00:52.6]} 23. Rfe1 {[%clk 0:01:01.8]} 23... Nxg2
{[%clk 0:00:48.6]} 24. Kxg2 {[%clk 0:00:59.1]} 24... Nxd3 {[%clk 0:00:48.5]} 25.
Rf1 {[%clk 0:00:58.5]} 25... Nc5 {[%clk 0:00:42.8]} 26. Rb6 {[%clk 0:00:44.8]}
26... Nxe4 {[%clk 0:00:40.2]} 27. Nxe4 {[%clk 0:00:43]} 27... Rxe4 {[%clk
0:00:39.6]} 28. Nb3 {[%clk 0:00:26.2]} 28... Rxa4 {[%clk 0:00:37.8]} 29. Rxd6
{[%clk 0:00:25.2]} 29... Bf5 {[%clk 0:00:35]} 30. Nc5 {[%clk 0:00:23.1]} 30...
Rd4 {[%clk 0:00:32.5]} 31. Nxb7 {[%clk 0:00:20.8]} 31... Rxd5 {[%clk 0:00:32.7]}
32. Rxd5 {[%clk 0:00:15.7]} 32... Be4+ {[%clk 0:00:32.9]} 33. Kg3 {[%clk
0:00:15.6]} 33... Bxd5 {[%clk 0:00:33.3]} 34. Nc5 {[%clk 0:00:14.7]} 34... a5
{[%clk 0:00:31.3]} 35. Rd1 {[%clk 0:00:13.1]} 35... Bc4 {[%clk 0:00:31.2]} 36.
Rc1 {[%clk 0:00:11.7]} 36... Bb5 {[%clk 0:00:31.1]} 37. Ne4 {[%clk 0:00:10.1]}
37... Bd7 {[%clk 0:00:26.4]} 38. Nf6+ {[%clk 0:00:08.8]} 38... Kg7 {[%clk
0:00:22.8]} 39. Nxd7 {[%clk 0:00:08.7]} 39... a4 {[%clk 0:00:23.4]} 40. Ra1
{[%clk 0:00:08.5]} 40... Ra5 {[%clk 0:00:20]} 41. Nb6 {[%clk 0:00:07.1]} 41...
g5 {[%clk 0:00:19.7]} 42. Rxa4 {[%clk 0:00:04.6]} 42... gxf4+ {[%clk 0:00:19.2]}
43. Kxf4 {[%clk 0:00:03.8]} 43... Rh5 {[%clk 0:00:18.7]} 44. Ra2 {[%clk
0:00:02.4]} 44... Kg6 {[%clk 0:00:17.9]} 45. Nd7 {[%clk 0:00:01.1]} 45... Rh4+
{[%clk 0:00:17.2]} 0-1

[Event "*** Titled Tuesday Blitz"]
[Site "Chess.com"]
[Date "2020.05.19"]
[Round "10"]
[White "Asteroxylon"]
[Black "Mikhail_Golubev"]
[Result "1-0"]
[WhiteElo "2460"]
[BlackElo "2535"]
[TimeControl "180+1"]
[EndTime "13:57:25 PDT"]
[Termination "Asteroxylon won on time"]

1. e4 {[%clk 0:02:57.2]} 1... c5 {[%clk 0:02:56.7]} 2. Nc3 {[%clk 0:02:56.2]}
2... Nc6 {[%clk 0:02:55.8]} 3. g3 {[%clk 0:02:56.2]} 3... g6 {[%clk 0:02:55.4]}
4. Bg2 {[%clk 0:02:56.9]} 4... Bg7 {[%clk 0:02:55.5]} 5. d3 {[%clk 0:02:57.6]}
5... e6 {[%clk 0:02:52.9]} 6. Be3 {[%clk 0:02:56.7]} 6... Nd4 {[%clk 0:02:52.4]}
7. f4 {[%clk 0:02:51]} 7... Ne7 {[%clk 0:02:50.8]} 8. Nf3 {[%clk 0:02:49.2]}
8... Nec6 {[%clk 0:02:39.5]} 9. e5 {[%clk 0:02:47.4]} 9... d6 {[%clk 0:01:49.2]}
10. O-O {[%clk 0:02:42.2]} 10... dxe5 {[%clk 0:01:44.4]} 11. Nxe5 {[%clk
0:02:39.7]} 11... Nxe5 {[%clk 0:01:37.6]} 12. fxe5 {[%clk 0:02:39.5]} 12... Bxe5
{[%clk 0:01:26.6]} 13. Ne4 {[%clk 0:02:39.3]} 13... O-O {[%clk 0:01:08.1]} 14.
c3 {[%clk 0:02:37.2]} 14... Nf5 {[%clk 0:01:02.2]} 15. Bxc5 {[%clk 0:02:36.6]}
15... Re8 {[%clk 0:01:01.9]} 16. Qf3 {[%clk 0:02:30.1]} 16... b6 {[%clk
0:00:43.4]} 17. Bf2 {[%clk 0:02:27.8]} 17... Bb7 {[%clk 0:00:42.9]} 18. Rae1
{[%clk 0:02:15.1]} 18... Bg7 {[%clk 0:00:40.6]} 19. g4 {[%clk 0:02:06.1]} 19...
Nd6 {[%clk 0:00:36.1]} 20. Bg3 {[%clk 0:01:54.6]} 20... Bxe4 {[%clk 0:00:26.9]}
21. dxe4 {[%clk 0:01:53]} 21... e5 {[%clk 0:00:20.5]} 22. Rd1 {[%clk 0:01:51.6]}
22... Qc7 {[%clk 0:00:17]} 23. Bh4 {[%clk 0:01:39.7]} 23... Re6 {[%clk
0:00:11.3]} 24. Rd5 {[%clk 0:01:28.3]} 24... Rae8 {[%clk 0:00:09.9]} 25. Rfd1
{[%clk 0:01:28]} 25... f6 {[%clk 0:00:09]} 26. Bf2 {[%clk 0:01:20.1]} 26... Qe7
{[%clk 0:00:08.2]} 27. Qd3 {[%clk 0:01:18.3]} 27... Nf7 {[%clk 0:00:06.6]} 28.
Rd7 {[%clk 0:01:16.6]} 28... Qf8 {[%clk 0:00:06.7]} 29. Rxa7 {[%clk 0:01:12.8]}
29... Rd6 {[%clk 0:00:06.3]} 30. Qc2 {[%clk 0:01:11.8]} 30... Ng5 {[%clk
0:00:05.6]} 31. h4 {[%clk 0:01:01.6]} 31... Ne6 {[%clk 0:00:05]} 32. Bf1 {[%clk
0:00:57.8]} 32... Rxd1 {[%clk 0:00:03.6]} 33. Qxd1 {[%clk 0:00:58.7]} 33... Kh8
{[%clk 0:00:04]} 34. Qd7 {[%clk 0:00:55.5]} 34... Nf4 {[%clk 0:00:02.4]} 35. Bc4
{[%clk 0:00:52.2]} 35... Rd8 {[%clk 0:00:02.2]} 36. Qf7 {[%clk 0:00:46.1]} 36...
Qxf7 {[%clk 0:00:02.4]} 37. Rxf7 {[%clk 0:00:45.4]} 37... Nh3+ {[%clk
0:00:02.9]} 38. Kg2 {[%clk 0:00:45]} 38... Nxf2 {[%clk 0:00:03.2]} 39. Kxf2
{[%clk 0:00:45.9]} 39... Rd2+ {[%clk 0:00:03.1]} 40. Ke3 {[%clk 0:00:46.1]}
40... Rxb2 {[%clk 0:00:03]} 41. g5 {[%clk 0:00:45.5]} 41... fxg5 {[%clk
0:00:02.7]} 42. hxg5 {[%clk 0:00:46.4]} 42... h5 {[%clk 0:00:02.9]} 43. Rb7
{[%clk 0:00:45.1]} 43... Bf8 {[%clk 0:00:02.9]} 44. Rb8 {[%clk 0:00:42.9]} 44...
Kg7 {[%clk 0:00:03]} 45. Rb7+ {[%clk 0:00:42.5]} 45... Kh8 {[%clk 0:00:03.3]}
46. Rb8 {[%clk 0:00:42.1]} 46... Kg7 {[%clk 0:00:03.1]} 47. Kd3 {[%clk
0:00:41.9]} 47... Bc5 {[%clk 0:00:02.4]} 48. Rb7+ {[%clk 0:00:42.2]} 48... Kf8
{[%clk 0:00:01.6]} 49. Rf7+ {[%clk 0:00:41.3]} 49... Ke8 {[%clk 0:00:01.9]} 50.
Rf6 {[%clk 0:00:40.3]} 50... h4 {[%clk 0:00:02.1]} 51. Rxg6 {[%clk 0:00:39.9]}
51... h3 {[%clk 0:00:02.2]} 52. Rh6 {[%clk 0:00:40]} 52... h2 {[%clk 0:00:02.4]}
53. g6 {[%clk 0:00:39.8]} 53... Bf8 {[%clk 0:00:01.5]} 54. Rh8 {[%clk
0:00:39.5]} 54... Rg2 {[%clk 0:00:01.4]} 55. g7 {[%clk 0:00:36.7]} 1-0

[Event "*** Titled Tuesday Blitz"]
[Site "Chess.com"]
[Date "2020.05.19"]
[Round "10"]
[White "Mirzaad786"]
[Black "LimeInTheCoconut"]
[Result "0-1"]
[WhiteElo "2291"]
[BlackElo "2508"]
[TimeControl "180+1"]
[EndTime "13:57:26 PDT"]
[Termination "LimeInTheCoconut won by checkmate"]

1. d4 {[%clk 0:03:00.7]} 1... Nf6 {[%clk 0:02:59.6]} 2. Bf4 {[%clk 0:03:00.7]}
2... d5 {[%clk 0:02:59.3]} 3. c3 {[%clk 0:03:00.4]} 3... Bf5 {[%clk 0:02:56.4]}
4. Qb3 {[%clk 0:02:58.9]} 4... Qc8 {[%clk 0:02:54.8]} 5. Nd2 {[%clk 0:02:58.2]}
5... e6 {[%clk 0:02:54.3]} 6. e3 {[%clk 0:02:57.9]} 6... c5 {[%clk 0:02:52.5]}
7. Ngf3 {[%clk 0:02:54.9]} 7... Be7 {[%clk 0:02:50.2]} 8. Be2 {[%clk 0:02:49.1]}
8... O-O {[%clk 0:02:48.6]} 9. O-O {[%clk 0:02:48.6]} 9... h6 {[%clk 0:02:48.3]}
10. h3 {[%clk 0:02:47.7]} 10... Nbd7 {[%clk 0:02:46.9]} 11. Rac1 {[%clk
0:02:44.1]} 11... c4 {[%clk 0:02:46]} 12. Qd1 {[%clk 0:02:43.7]} 12... b5 {[%clk
0:02:44.4]} 13. Ne5 {[%clk 0:02:40.5]} 13... a5 {[%clk 0:02:41.2]} 14. g4 {[%clk
0:02:39.1]} 14... Bh7 {[%clk 0:02:40]} 15. g5 {[%clk 0:02:38.7]} 15... hxg5
{[%clk 0:02:36.9]} 16. Bxg5 {[%clk 0:02:38.9]} 16... Qc7 {[%clk 0:02:16.8]} 17.
f4 {[%clk 0:02:38.4]} 17... b4 {[%clk 0:02:04.7]} 18. Rf2 {[%clk 0:02:34.7]}
18... bxc3 {[%clk 0:02:01.8]} 19. bxc3 {[%clk 0:02:34.8]} 19... Rab8 {[%clk
0:02:00]} 20. Rg2 {[%clk 0:02:30.7]} 20... Rfe8 {[%clk 0:01:42.7]} 21. Qe1
{[%clk 0:02:10.5]} 21... Nxe5 {[%clk 0:01:31.7]} 22. fxe5 {[%clk 0:02:06.7]}
22... Ne4 {[%clk 0:01:31.5]} 23. Nxe4 {[%clk 0:02:05.7]} 23... Bxe4 {[%clk
0:01:29.3]} 24. Rg4 {[%clk 0:01:52.9]} 24... Bf8 {[%clk 0:01:13.3]} 25. Qg3
{[%clk 0:01:33.7]} 25... Bg6 {[%clk 0:01:09.6]} 26. Bf4 {[%clk 0:01:25.9]} 26...
Rb2 {[%clk 0:00:42.1]} 27. Bf3 {[%clk 0:01:20.7]} 27... Reb8 {[%clk 0:00:37.7]}
28. Bxd5 {[%clk 0:00:49.6]} 28... Rb1 {[%clk 0:00:29.9]} 29. Rxb1 {[%clk
0:00:43.9]} 29... Rxb1+ {[%clk 0:00:29.5]} 30. Kh2 {[%clk 0:00:44.5]} 30... exd5
{[%clk 0:00:27.8]} 31. e6 {[%clk 0:00:43.3]} 31... Be4 {[%clk 0:00:22.8]} 32.
Qh4 {[%clk 0:00:21.1]} 32... Rh1+ {[%clk 0:00:18.9]} 33. Kg3 {[%clk 0:00:20.8]}
33... Rg1+ {[%clk 0:00:19.1]} 34. Kf2 {[%clk 0:00:20.7]} 34... Rxg4 {[%clk
0:00:15.7]} 35. hxg4 {[%clk 0:00:20.9]} 35... Qe7 {[%clk 0:00:12.9]} 36. Qxe7
{[%clk 0:00:20]} 36... Bxe7 {[%clk 0:00:13]} 37. exf7+ {[%clk 0:00:19.3]} 37...
Kxf7 {[%clk 0:00:13.9]} 38. Bc7 {[%clk 0:00:18.1]} 38... a4 {[%clk 0:00:14]} 39.
Kg3 {[%clk 0:00:15.7]} 39... Bb1 {[%clk 0:00:13.8]} 40. Kf4 {[%clk 0:00:14.1]}
40... Bxa2 {[%clk 0:00:13.8]} 41. Ke5 {[%clk 0:00:15]} 41... Bb3 {[%clk
0:00:08.2]} 42. Kxd5 {[%clk 0:00:15.1]} 42... a3 {[%clk 0:00:08.6]} 43. e4
{[%clk 0:00:13.4]} 43... a2 {[%clk 0:00:08.5]} 44. e5 {[%clk 0:00:14.3]} 44...
a1=Q {[%clk 0:00:08.2]} 45. e6+ {[%clk 0:00:15.2]} 45... Ke8 {[%clk 0:00:08.7]}
46. Be5 {[%clk 0:00:14.3]} 46... Qa8# {[%clk 0:00:08]} 0-1

[Event "*** Titled Tuesday Blitz"]
[Site "Chess.com"]
[Date "2020.05.19"]
[Round "10"]
[White "Belka1989"]
[Black "Lali-Rustavi"]
[Result "1/2-1/2"]
[WhiteElo "2113"]
[BlackElo "1895"]
[TimeControl "180+1"]
[EndTime "13:57:26 PDT"]
[Termination "Game drawn by repetition"]

1. d4 {[%clk 0:03:00.9]} 1... Nf6 {[%clk 0:02:59.1]} 2. Nf3 {[%clk 0:03:01.4]}
2... g6 {[%clk 0:02:59.4]} 3. Bf4 {[%clk 0:03:02]} 3... Bg7 {[%clk 0:02:59.8]}
4. e3 {[%clk 0:03:02.7]} 4... d6 {[%clk 0:03:00.2]} 5. Be2 {[%clk 0:03:02.5]}
5... O-O {[%clk 0:03:00.2]} 6. O-O {[%clk 0:03:03.1]} 6... Nbd7 {[%clk
0:03:00.3]} 7. c3 {[%clk 0:03:01.7]} 7... c6 {[%clk 0:03:00.7]} 8. h3 {[%clk
0:03:02.2]} 8... b5 {[%clk 0:03:00.9]} 9. Nbd2 {[%clk 0:02:57.7]} 9... Bb7
{[%clk 0:03:00.7]} 10. Re1 {[%clk 0:02:39.9]} 10... a6 {[%clk 0:02:58.7]} 11.
Qb3 {[%clk 0:02:34.3]} 11... c5 {[%clk 0:02:55.7]} 12. Bf1 {[%clk 0:01:52.9]}
12... Nd5 {[%clk 0:02:29.6]} 13. Bh2 {[%clk 0:01:49]} 13... e5 {[%clk
0:02:27.8]} 14. e4 {[%clk 0:01:34]} 14... Nf4 {[%clk 0:02:26.3]} 15. d5 {[%clk
0:01:19.4]} 15... f5 {[%clk 0:02:17.3]} 16. c4 {[%clk 0:01:06.9]} 16... b4
{[%clk 0:02:12]} 17. Bxf4 {[%clk 0:00:25.7]} 17... exf4 {[%clk 0:02:11.4]} 18.
Rad1 {[%clk 0:00:20.6]} 18... Qf6 {[%clk 0:02:04.1]} 19. Rb1 {[%clk 0:00:17.7]}
19... g5 {[%clk 0:02:02.6]} 20. exf5 {[%clk 0:00:15.2]} 20... Qxf5 {[%clk
0:02:02.1]} 21. Bd3 {[%clk 0:00:14.1]} 21... Qf6 {[%clk 0:02:02.2]} 22. Qc2
{[%clk 0:00:11.9]} 22... Qh6 {[%clk 0:02:00.8]} 23. Re6 {[%clk 0:00:11.2]} 23...
Rf6 {[%clk 0:01:59.5]} 24. Rbe1 {[%clk 0:00:10.6]} 24... Raf8 {[%clk 0:01:52.9]}
25. Rxf6 {[%clk 0:00:10.2]} 25... Rxf6 {[%clk 0:01:41.4]} 26. Re8+ {[%clk
0:00:09]} 26... Rf8 {[%clk 0:01:40.6]} 27. Re1 {[%clk 0:00:08.1]} 27... Bc8
{[%clk 0:01:35.5]} 28. Bf5 {[%clk 0:00:08]} 28... Nf6 {[%clk 0:01:28.2]} 29.
Bxc8 {[%clk 0:00:08.6]} 29... Rxc8 {[%clk 0:01:28.2]} 30. Qf5 {[%clk 0:00:09.2]}
30... Rd8 {[%clk 0:01:21.5]} 31. Qxg5 {[%clk 0:00:08.4]} 31... Rf8 {[%clk
0:01:07.6]} 32. Qxh6 {[%clk 0:00:05.2]} 32... Bxh6 {[%clk 0:01:07.6]} 33. Ne4
{[%clk 0:00:05.1]} 33... Ne8 {[%clk 0:01:03.7]} 34. b3 {[%clk 0:00:03.2]} 34...
Bg7 {[%clk 0:01:03.1]} 35. Neg5 {[%clk 0:00:03.3]} 35... Bc3 {[%clk 0:01:00.3]}
36. Re2 {[%clk 0:00:03.6]} 36... Ng7 {[%clk 0:00:55.4]} 37. Ne6 {[%clk
0:00:03.6]} 37... Nxe6 {[%clk 0:00:53.7]} 38. Rxe6 {[%clk 0:00:04.5]} 38... Rf6
{[%clk 0:00:53.7]} 39. Rxf6 {[%clk 0:00:03.6]} 39... Bxf6 {[%clk 0:00:53.3]} 40.
Kf1 {[%clk 0:00:04.2]} 40... a5 {[%clk 0:00:53]} 41. Ke2 {[%clk 0:00:03.3]}
41... Kf7 {[%clk 0:00:53.3]} 42. Nd2 {[%clk 0:00:03.5]} 42... Kg6 {[%clk
0:00:53.2]} 43. Ne4 {[%clk 0:00:04]} 43... Be5 {[%clk 0:00:53.7]} 44. Kf3 {[%clk
0:00:03.3]} 44... Kf5 {[%clk 0:00:53.3]} 45. g3 {[%clk 0:00:03.7]} 45... fxg3
{[%clk 0:00:52.8]} 46. fxg3 {[%clk 0:00:04.6]} 46... h5 {[%clk 0:00:51.8]} 47.
g4+ {[%clk 0:00:04.6]} 47... hxg4+ {[%clk 0:00:51.9]} 48. hxg4+ {[%clk
0:00:05.5]} 48... Kg6 {[%clk 0:00:52.4]} 49. g5 {[%clk 0:00:03.2]} 49... Kf5
{[%clk 0:00:50.1]} 50. Ke3 {[%clk 0:00:02.1]} 50... Kg6 {[%clk 0:00:44.8]} 51.
Kf3 {[%clk 0:00:01.8]} 51... Kf5 {[%clk 0:00:44.8]} 52. Ke3 {[%clk 0:00:02.5]}
52... Kg6 {[%clk 0:00:44.8]} 53. Kf3 {[%clk 0:00:03.2]} 1/2-1/2

[Event "*** Titled Tuesday Blitz"]
[Site "Chess.com"]
[Date "2020.05.19"]
[Round "10"]
[White "zmeeed67"]
[Black "Slovak_fighter2000"]
[Result "1-0"]
[WhiteElo "2427"]
[BlackElo "2533"]
[TimeControl "180+1"]
[EndTime "13:57:27 PDT"]
[Termination "zmeeed67 won by resignation"]

1. d4 {[%clk 0:03:00.9]} 1... e5 {[%clk 0:02:58.3]} 2. dxe5 {[%clk 0:03:00.5]}
2... Nc6 {[%clk 0:02:57.8]} 3. Nf3 {[%clk 0:02:59.8]} 3... Qe7 {[%clk
0:02:58.3]} 4. Bf4 {[%clk 0:02:58.9]} 4... Qb4+ {[%clk 0:02:57.3]} 5. Bd2 {[%clk
0:02:58.9]} 5... Qxb2 {[%clk 0:02:57.3]} 6. Nc3 {[%clk 0:02:58.7]} 6... Bb4
{[%clk 0:02:56.6]} 7. Rb1 {[%clk 0:02:58.2]} 7... Qxc3 {[%clk 0:02:57.1]} 8.
Bxc3 {[%clk 0:02:51]} 8... Bxc3+ {[%clk 0:02:58]} 9. Nd2 {[%clk 0:02:51.7]} 9...
Nxe5 {[%clk 0:02:58.2]} 10. Rb3 {[%clk 0:02:40.1]} 10... Ba5 {[%clk 0:02:53.2]}
11. Re3 {[%clk 0:02:37.5]} 11... d6 {[%clk 0:02:45.9]} 12. f4 {[%clk 0:02:37.5]}
12... Bb6 {[%clk 0:02:44.9]} 13. Rg3 {[%clk 0:02:08.9]} 13... Ng6 {[%clk
0:02:41.1]} 14. e3 {[%clk 0:02:04.2]} 14... Nf6 {[%clk 0:02:39.2]} 15. Be2
{[%clk 0:01:52.7]} 15... O-O {[%clk 0:02:09]} 16. h4 {[%clk 0:01:47.1]} 16...
Ne7 {[%clk 0:02:02.2]} 17. Bd3 {[%clk 0:01:27.3]} 17... Ned5 {[%clk 0:01:48.2]}
18. Ne4 {[%clk 0:00:50.4]} 18... Nxe4 {[%clk 0:01:31.6]} 19. Bxe4 {[%clk
0:00:51.3]} 19... Nxe3 {[%clk 0:01:29]} 20. Qd3 {[%clk 0:00:22.7]} 20... g6
{[%clk 0:00:59.3]} 21. Rxe3 {[%clk 0:00:16.8]} 21... Bxe3 {[%clk 0:01:00.2]} 22.
Qxe3 {[%clk 0:00:17.7]} 22... Re8 {[%clk 0:00:59.8]} 23. Kf2 {[%clk 0:00:06]}
23... d5 {[%clk 0:00:53.3]} 24. h5 {[%clk 0:00:06.3]} 24... Rxe4 {[%clk
0:00:48.9]} 25. Qc3 {[%clk 0:00:06.4]} 25... Rxf4+ {[%clk 0:00:37.1]} 26. Kg3
{[%clk 0:00:06.6]} 26... Rf5 {[%clk 0:00:13.4]} 27. h6 {[%clk 0:00:05]} 27...
Kf8 {[%clk 0:00:05.7]} 28. Qg7+ {[%clk 0:00:03.1]} 28... Ke7 {[%clk 0:00:06.1]}
29. Qxh7 {[%clk 0:00:04]} 29... Be6 {[%clk 0:00:04.8]} 30. Qg7 {[%clk
0:00:03.5]} 30... Rg5+ {[%clk 0:00:04.8]} 31. Kf2 {[%clk 0:00:03.3]} 31... Rf5+
{[%clk 0:00:04.9]} 32. Ke3 {[%clk 0:00:03.6]} 32... c5 {[%clk 0:00:03.3]} 33. h7
{[%clk 0:00:03.7]} 33... d4+ {[%clk 0:00:02.9]} 34. Kd2 {[%clk 0:00:03.9]} 34...
Rf2+ {[%clk 0:00:02.6]} 35. Kc1 {[%clk 0:00:04.2]} 35... Rxg2 {[%clk 0:00:02.9]}
36. h8=Q {[%clk 0:00:01.9]} 36... Rxh8 {[%clk 0:00:03.4]} 37. Qxh8 {[%clk
0:00:01.5]} 37... Rf2 {[%clk 0:00:03.4]} 38. Qh4+ {[%clk 0:00:02]} 38... Kd7
{[%clk 0:00:02.8]} 39. Qxf2 {[%clk 0:00:01.4]} 39... Kc6 {[%clk 0:00:02.3]} 40.
Rf1 {[%clk 0:00:02.3]} 40... b6 {[%clk 0:00:02.8]} 41. Qd2 {[%clk 0:00:02.8]}
41... Kd5 {[%clk 0:00:02.8]} 42. c3 {[%clk 0:00:03.7]} 42... Ke5 {[%clk
0:00:01.8]} 43. cxd4+ {[%clk 0:00:04.6]} 43... cxd4 {[%clk 0:00:02.6]} 44. Re1+
{[%clk 0:00:04.8]} 44... Kd5 {[%clk 0:00:03.1]} 45. Rd1 {[%clk 0:00:05]} 1-0

[Event "*** Titled Tuesday Blitz"]
[Site "Chess.com"]
[Date "2020.05.19"]
[Round "10"]
[White "viviania"]
[Black "Sibelephant"]
[Result "0-1"]
[WhiteElo "2952"]
[BlackElo "3171"]
[TimeControl "180+1"]
[EndTime "13:57:28 PDT"]
[Termination "Sibelephant won on time"]

1. e4 {[%clk 0:03:00.9]} 1... c5 {[%clk 0:02:59.2]} 2. Nf3 {[%clk 0:03:00.3]}
2... d6 {[%clk 0:02:59.7]} 3. d4 {[%clk 0:02:59.3]} 3... cxd4 {[%clk 0:03:00.4]}
4. Nxd4 {[%clk 0:02:59.2]} 4... Nf6 {[%clk 0:03:01]} 5. Nc3 {[%clk 0:02:59.3]}
5... a6 {[%clk 0:03:01.5]} 6. Be2 {[%clk 0:02:59.5]} 6... e6 {[%clk 0:03:01.1]}
7. Be3 {[%clk 0:02:57.2]} 7... Be7 {[%clk 0:03:00.3]} 8. g4 {[%clk 0:02:55.8]}
8... O-O {[%clk 0:02:51.2]} 9. g5 {[%clk 0:02:54.4]} 9... Nfd7 {[%clk
0:02:51.3]} 10. h4 {[%clk 0:02:54.3]} 10... b5 {[%clk 0:02:50.1]} 11. a3 {[%clk
0:02:53.9]} 11... Bb7 {[%clk 0:02:49.8]} 12. Rg1 {[%clk 0:02:49]} 12... Nc6
{[%clk 0:02:36.1]} 13. h5 {[%clk 0:02:45.3]} 13... Rc8 {[%clk 0:02:27.9]} 14. f3
{[%clk 0:02:11.4]} 14... Nce5 {[%clk 0:02:16.9]} 15. Qd2 {[%clk 0:01:53.5]}
15... Nb6 {[%clk 0:02:03.4]} 16. b3 {[%clk 0:01:53.1]} 16... b4 {[%clk 0:01:57]}
17. axb4 {[%clk 0:01:36]} 17... d5 {[%clk 0:01:57.2]} 18. Na4 {[%clk 0:01:35.8]}
18... Nxa4 {[%clk 0:01:54.3]} 19. Rxa4 {[%clk 0:01:35.6]} 19... dxe4 {[%clk
0:01:54.7]} 20. f4 {[%clk 0:01:31.7]} 20... Nf3+ {[%clk 0:01:53.5]} 21. Nxf3
{[%clk 0:01:31.5]} 21... exf3 {[%clk 0:01:52]} 22. Bxa6 {[%clk 0:01:28.2]} 22...
Bxa6 {[%clk 0:01:29.6]} 23. Rxa6 {[%clk 0:01:26.5]} 23... Qc7 {[%clk 0:00:55.9]}
24. Ra7 {[%clk 0:01:21.5]} 24... Qxc2 {[%clk 0:00:39.2]} 25. Rxe7 {[%clk
0:01:08.3]} 25... Qe4 {[%clk 0:00:32.1]} 26. g6 {[%clk 0:00:34.7]} 26... f2+
{[%clk 0:00:31.8]} 27. Kxf2 {[%clk 0:00:29.6]} 27... Rc2 {[%clk 0:00:31.9]} 28.
gxf7+ {[%clk 0:00:21.2]} 28... Rxf7 {[%clk 0:00:32.6]} 29. Re8+ {[%clk
0:00:17.4]} 29... Rf8 {[%clk 0:00:32.9]} 30. Rxf8+ {[%clk 0:00:13.6]} 30... Kxf8
{[%clk 0:00:33.2]} 31. Qxc2 {[%clk 0:00:08.3]} 31... Qxc2+ {[%clk 0:00:33]} 32.
Kf3 {[%clk 0:00:07.7]} 32... Qxb3 {[%clk 0:00:33.6]} 33. Rg5 {[%clk 0:00:07.2]}
33... Qd1+ {[%clk 0:00:30.1]} 34. Kf2 {[%clk 0:00:06.5]} 34... Qc2+ {[%clk
0:00:23.4]} 35. Kf3 {[%clk 0:00:05.8]} 35... Kf7 {[%clk 0:00:22.3]} 36. b5
{[%clk 0:00:04.6]} 36... Qd1+ {[%clk 0:00:17.7]} 37. Kf2 {[%clk 0:00:04.1]}
37... Qc2+ {[%clk 0:00:17.8]} 38. Kf3 {[%clk 0:00:03.8]} 38... h6 {[%clk
0:00:15.3]} 39. Re5 {[%clk 0:00:03]} 39... Qd1+ {[%clk 0:00:13]} 40. Kf2 {[%clk
0:00:03.1]} 40... Qc2+ {[%clk 0:00:13.4]} 41. Kf3 {[%clk 0:00:03.2]} 41... Qb1
{[%clk 0:00:14.1]} 42. Kf2 {[%clk 0:00:02.2]} 42... Qb2+ {[%clk 0:00:09.1]} 43.
Kf3 {[%clk 0:00:02]} 43... Qb3 {[%clk 0:00:09.5]} 44. Kf2 {[%clk 0:00:01.6]}
44... g6 {[%clk 0:00:09.1]} 0-1